fUST/lending_fUST_20260601
["ID","MTS","AMOUNT","RATE_DAILY","PERIOD"]
[423650300,1780278632000,-600.0,0.000171,2]
[423650302,1780278632000,-301.0,0.0001796,2]
[423650296,1780278632000,-300.0,0.00016766,2]
[423650304,1780278632000,-720.0,0.0001881,2]
[423650331,1780278632000,-492.0,0.0002754,30]
[423650332,1780278632000,-151.0,0.000277,120]
[423650330,1780278632000,-1000.0,0.0002754,30]
[423650337,1780278632000,-1565.24169715,0.000299,2]
[423650329,1780278632000,-151.0,0.000268,120]
[423650333,1780278632000,-150.83,0.00028452,2]
[423650325,1780278632000,-151.0,0.000251,120]
[423650303,1780278632000,-420.0,0.00017962,2]
[423650327,1780278632000,-151.0,0.00026,120]
[423650326,1780278632000,-216.7086201,0.00025802,2]
[423650328,1780278632000,-326.5701808,0.00026568,2]
[423650324,1780278632000,-244.0,0.00025037,10]
[423650317,1780278632000,-506.02986646,0.0002205,2]
[423650318,1780278632000,-151.0,0.000226,120]
[423650314,1780278632000,-151.0,0.000209,120]
[423650335,1780278632000,-151.0,0.000294,120]
[423650316,1780278632000,-500.0,0.00021776,2]
[423650315,1780278632000,-151.0,0.000217,120]
[423650310,1780278632000,-511.16037238,0.00020499,2]
[423650308,1780278632000,-509.03777903,0.00020499,2]
[423650305,1780278632000,-300.0,0.00019178,2]
[423650306,1780278632000,-1579.0,0.0002,2]
[423650309,1780278632000,-500.0,0.00020499,2]
[423650307,1780278632000,-510.34045024,0.00020499,2]
[423650319,1780278632000,-1000.0,0.0002276,10]
[423650322,1780278632000,-151.0,0.000243,120]
[423650323,1780278632000,-1000.0,0.00025037,10]
[423650321,1780278632000,-1000.0,0.00024101,30]
[423650312,1780278632000,-864.0,0.00020691,2]
[423650320,1780278632000,-151.0,0.000234,120]
[423650313,1780278632000,-333.91830965,0.00020773,2]
[423650350,1780278638000,-200.0,0.00029347,2]
[423650348,1780278638000,-200.0,0.00028509,2]
[423650349,1780278638000,-200.0,0.00028928,2]
[423650347,1780278638000,-200.0,0.0002809,2]
[423650351,1780278638000,-5000.0,0.00029601,2]
[423650352,1780278638000,-200.0,0.00029767,2]
[423650359,1780278638000,-2078.6502415,0.0003,30]
[423650354,1780278638000,-7295.0,0.00029998,2]
[423650355,1780278638000,-246.71026015,0.00029999,2]
[423650356,1780278638000,-16840.35920106,0.0003,30]
[423650357,1780278638000,-324.19,0.0002767,2]
[423650358,1780278638000,-2030.58989938,0.0003,30]
[423650360,1780278638000,-1379.74858557,0.0003,30]
[423650353,1780278638000,-3421.72534961,0.000299,2]
[423650371,1780278640000,-827.11982447,0.0003,30]
[423650372,1780278640000,-749.88257175,0.0003,30]
[423650370,1780278640000,-172.88017553,0.000225,2]
[423650396,1780278645000,-1578.02079116,0.0003,30]
[423650395,1780278645000,-8398.19545713,0.0003,30]
[423650399,1780278646000,-14699.99999999,0.0003,30]
[423650400,1780278646000,-841.45616995,0.0003,30]
[423650402,1780278646000,-1923.58966996,0.00030107,2]
[423650401,1780278646000,-48110.01885568,0.0003,30]
[423650403,1780278646000,-151.0,0.000302,120]
[423650405,1780278646000,-791.0,0.00030294,30]
[423650415,1780278646000,-337.49429306,0.00032708,2]
[423650404,1780278646000,-1000.0,0.00030294,30]
[423650413,1780278646000,-161.0,0.00032,120]
[423650406,1780278646000,-1573.9508291,0.00030411,2]
[423650409,1780278646000,-172.88017553,0.000312,2]
[423650408,1780278646000,-151.0,0.000311,120]
[423650407,1780278646000,-161.08932694,0.00031,120]
[423650414,1780278646000,-858.69,0.00032699,3]
[423650410,1780278646000,-500.0,0.00031403,2]
[423650412,1780278646000,-151.0,0.000319,120]
[423650411,1780278646000,-530.46199395,0.00031677,2]
[423650416,1780278646000,-159380.18825439,0.00032798,120]
[423650420,1780278729000,-2078.6502415,0.00020294,2]
[423650421,1780278739000,-167.62336709,0.0001782,2]
[423650422,1780278793000,-1379.74858557,0.00020294,2]
[423650423,1780278804000,-1379.74858557,0.00020294,2]
[423650426,1780279034000,100000.0,0.00020963,30]
[423650429,1780279367000,-220.33137239,0.00018001,2]
[423650430,1780279384000,-5000.0,0.00018372,2]
[423650433,1780279752000,-2625.03643878,0.00020091,2]
[423650473,1780279832000,-428.30439283,0.0002624,30]
[423650469,1780279832000,-1064.41833837,0.0001989,2]
[423650471,1780279832000,-50.38548747,0.0001989,2]
[423650470,1780279832000,-3885.19617416,0.0001989,2]
[423650476,1780279832000,-172.88017553,0.00029816,2]
[423650472,1780279832000,-571.69560717,0.0002624,30]
[423650479,1780279832000,-1508.61030378,0.00029907,2]
[423650477,1780279832000,-300.0,0.00029905,2]
[423650475,1780279832000,-137.46072145,0.0002828,2]
[423650478,1780279832000,-670.49346834,0.00029907,2]
[423650474,1780279832000,-29.69993385,0.0002828,2]
[423650480,1780279832000,-1066.61117433,0.00029907,2]
[423650517,1780279838000,-167.39799549,0.00029916,2]
[423650516,1780279838000,-172.50836437,0.00029916,2]
[423650515,1780279838000,-500.0,0.00029916,2]
[423650513,1780279838000,-502.29699186,0.00029915,2]
[423650520,1780279838000,-479.58067088,0.00029916,2]
[423650511,1780279838000,-511.97653625,0.00029915,2]
[423650512,1780279838000,-532.77250308,0.00029915,2]
[423650514,1780279838000,-258.72652004,0.00029915,2]
[423650509,1780279838000,-2070.04995059,0.00029907,2]
[423650519,1780279838000,-503.43484285,0.00029916,2]
[423650510,1780279838000,-531.0716012,0.00029914,2]
[423650506,1780279838000,-1067.73483054,0.00029907,2]
[423650508,1780279838000,-1164.40309721,0.00029907,2]
[423650507,1780279838000,-646.89060956,0.00029907,2]
[423650496,1780279838000,-2471.4742056,0.00029907,2]
[423650495,1780279838000,-1615.36269905,0.00029907,2]
[423650497,1780279838000,-651.37514101,0.00029907,2]
[423650521,1780279838000,-201.79558614,0.00029916,2]
[423650518,1780279838000,-165.451,0.00029916,24]
[423650533,1780279838000,-267.02104669,0.00029916,2]
[423650528,1780279838000,-507.66490656,0.00029916,2]
[423650541,1780279838000,-662.29154235,0.000327,120]
[423650542,1780279838000,-709.05083335,0.000327,120]
[423650540,1780279838000,-485.13,0.000318,30]
[423650537,1780279838000,-867.69742962,0.00031228,7]
[423650539,1780279838000,-1257.74774181,0.00031727,2]
[423650522,1780279838000,-504.1031277,0.00029916,2]
[423650534,1780279838000,-182.7984242,0.00030798,2]
[423650532,1780279838000,-503.32210914,0.00029916,2]
[423650536,1780279838000,-1064.83657535,0.00031149,14]
[423650529,1780279838000,-583.92841812,0.00029916,2]
[423650526,1780279838000,-336.63926004,0.00029916,2]
[423650524,1780279838000,-338.39571897,0.00029916,2]
[423650531,1780279838000,-230.69720466,0.00029916,2]
[423650525,1780279838000,-547.65538148,0.00029916,2]
[423650523,1780279838000,-506.10204003,0.00029916,2]
[423650530,1780279838000,-501.27869676,0.00029916,2]
[423650527,1780279838000,-396.10712327,0.00029916,2]
[423650535,1780279838000,-439.50513741,0.00030986,30]
[423650538,1780279838000,-365.30293246,0.00031228,7]
[423650551,1780279839000,-29008.54341224,0.00032853,2]
[423650544,1780279839000,-779.39998155,0.000327,120]
[423650543,1780279839000,-755.81012434,0.000327,120]
[423650545,1780279839000,-801.48891283,0.000327,120]
[423650546,1780279839000,-1654.4910127,0.00032774,5]
[423650547,1780279839000,-497683.15735513,0.00032798,120]
[423650549,1780279839000,-151.0,0.000328,120]
[423650548,1780279839000,-400.0,0.000328,120]
[423650553,1780279839000,-2073.77824232,0.00032853,2]
[423650555,1780279839000,-1399.93316716,0.00032853,2]
[423650550,1780279839000,-6641.11811413,0.000328,2]
[423650556,1780279839000,-363.26021561,0.00032853,2]
[423650554,1780279839000,-1955.76137169,0.00032853,2]
[423650552,1780279839000,-729.31433,0.00032853,2]
[423650615,1780279843000,-2386.89478354,0.00032853,2]
[423650616,1780279843000,-622.06039237,0.00032853,2]
[423650614,1780279843000,-1018.69633129,0.00032853,2]
[423650618,1780279844000,-124838.69798626,0.00032853,2]
[423650619,1780279844000,-2964.69468935,0.00032853,2]
[423650617,1780279844000,-42000.0,0.00032853,2]
[423650670,1780279846000,-10322.45194937,0.00032853,2]
[423650669,1780279846000,-2566.5,0.00032853,2]
[423650681,1780280098000,-2073.77824232,0.0002844,30]
[423650682,1780280108000,-2073.77824232,0.0002844,30]
[423650683,1780280129000,-852.44351536,0.0002844,30]
[423650684,1780280160000,363.26021561,0.0002,120]
[423650685,1780280160000,67582.86291569,0.0002,120]
[423650686,1780280173000,-1955.76137169,0.00025087,2]
[423650688,1780280183000,-1955.76137169,0.00025087,2]
[423650689,1780280204000,-1088.47725662,0.00021,4]
[423650690,1780280224000,-1088.47725662,0.00021,4]
[423650691,1780280225000,-374.11411437,0.00021,4]
[423650692,1780280248000,-200.0,0.00016438,2]
[423650693,1780280258000,-363.26021561,0.00025087,2]
[423650694,1780280269000,-363.26021561,0.00025087,2]
[423650695,1780280280000,-361.9568254,0.00025087,2]
[423650696,1780280433000,-1036.67295155,0.0001,2]
[423650697,1780280456000,716.98519731,0.00021093,120]
[423650698,1780280466000,608.50684536,0.00021093,30]
[423650700,1780280504000,160.3016382,0.00021093,120]
[423650702,1780280526000,1120.16703137,0.000199,120]
[423650704,1780280535000,26903.19407711,7.6e-05,2]
[423650705,1780280546000,186.77057801,0.00021093,30]
[423650706,1780280548000,1371.44626414,0.00021093,30]
[423650707,1780280600000,18000.0,8.01e-05,2]
[423650708,1780280636000,-766.43621496,8.6e-05,2]
[423650710,1780280829000,-1399.93316716,0.0001,2]
[423650711,1780280840000,-676.6650263,0.0001,2]
[423650712,1780280900000,22843.62895654,8.01e-05,2]
[423650727,1780280965000,-300.0,0.00010199,2]
[423650728,1780280965000,-300.0,0.00010199,2]
[423650725,1780280965000,-300.0,0.00010199,2]
[423650723,1780280965000,-300.0,0.00010199,2]
[423650726,1780280965000,-300.0,0.00010199,2]
[423650721,1780280965000,-300.0,0.00010199,2]
[423650729,1780280965000,-300.0,0.00010199,2]
[423650724,1780280965000,-300.0,0.00010199,2]
[423650717,1780280965000,-5000.0,0.0001,2]
[423650720,1780280965000,-300.0,0.00010199,2]
[423650718,1780280965000,-666.02300211,0.0001,2]
[423650719,1780280965000,-300.0,0.00010199,2]
[423650715,1780280965000,-308.52517047,0.0001,2]
[423650716,1780280965000,-1527.75688178,0.0001,2]
[423650714,1780280965000,-300.0,9.999e-05,2]
[423650731,1780280965000,-300.0,0.00010199,2]
[423650722,1780280965000,-300.0,0.00010199,2]
[423650730,1780280965000,-300.0,0.00010199,2]
[423650742,1780280965000,-300.0,0.00014577,2]
[423650732,1780280965000,-300.0,0.00010199,2]
[423650733,1780280965000,-300.0,0.00010199,2]
[423650750,1780280965000,-389.67780656,0.00014996,2]
[423650747,1780280965000,-500.0,0.00014996,2]
[423650748,1780280965000,-500.0,0.00014996,2]
[423650745,1780280965000,-500.0,0.00014996,2]
[423650746,1780280965000,-500.0,0.00014996,2]
[423650744,1780280965000,-476.4276165,0.00014996,2]
[423650743,1780280965000,-322.00824781,0.00014822,2]
[423650749,1780280965000,-185.99517086,0.00014996,2]
[423650741,1780280965000,-161.00412391,0.0001411,2]
[423650739,1780280965000,-748.0,0.00013309,2]
[423650737,1780280965000,-587.0,0.00012099,2]
[423650738,1780280965000,-864.0,0.00012586,2]
[423650735,1780280965000,-420.0,0.00010999,2]
[423650736,1780280965000,-720.0,0.00011442,2]
[423650734,1780280965000,-600.0,0.00010402,2]
[423650740,1780280965000,-1000.0,0.00013845,2]
[423650767,1780280967000,-500.0,0.00014996,2]
[423650768,1780280967000,-500.0,0.00014996,2]
[423650765,1780280967000,-500.0,0.00014996,2]
[423650766,1780280967000,-500.0,0.00014996,2]
[423650764,1780280967000,-224.57220967,0.00014996,2]
[423650762,1780280967000,-500.0,0.00014996,2]
[423650759,1780280967000,-500.0,0.00014996,2]
[423650761,1780280967000,-500.0,0.00014996,2]
[423650754,1780280967000,-500.0,0.00014996,2]
[423650758,1780280967000,-500.0,0.00014996,2]
[423650757,1780280967000,-336.90599784,0.00014996,2]
[423650755,1780280967000,-500.0,0.00014996,2]
[423650756,1780280967000,-500.0,0.00014996,2]
[423650753,1780280967000,-500.0,0.00014996,2]
[423650752,1780280967000,-500.0,0.00014996,2]
[423650751,1780280967000,-110.32219344,0.00014996,2]
[423650760,1780280967000,-500.0,0.00014996,2]
[423650770,1780280967000,-500.0,0.00014996,2]
[423650763,1780280967000,-500.0,0.00014996,2]
[423650769,1780280967000,-500.0,0.00014996,2]
[423650788,1780280967000,-500.0,0.00014996,2]
[423650789,1780280967000,-92.69592942,0.00014996,2]
[423650786,1780280967000,-500.0,0.00014996,2]
[423650785,1780280967000,-500.0,0.00014996,2]
[423650783,1780280967000,-500.0,0.00014996,2]
[423650784,1780280967000,-500.0,0.00014996,2]
[423650782,1780280967000,-648.9760029,0.00014996,2]
[423650781,1780280967000,-500.0,0.00014996,2]
[423650780,1780280967000,-500.0,0.00014996,2]
[423650787,1780280967000,-500.0,0.00014996,2]
[423650779,1780280967000,-496.45811053,0.00014996,2]
[423650776,1780280967000,-500.0,0.00014996,2]
[423650777,1780280967000,-500.0,0.00014996,2]
[423650775,1780280967000,-500.0,0.00014996,2]
[423650773,1780280967000,-500.0,0.00014996,2]
[423650772,1780280967000,-500.0,0.00014996,2]
[423650771,1780280967000,-500.0,0.00014996,2]
[423650774,1780280967000,-500.0,0.00014996,2]
[423650778,1780280967000,-500.0,0.00014996,2]
[423650790,1780280991000,300.01,0.0002054,120]
[423650833,1780281032000,-432.91578625,0.00013999,2]
[423650836,1780281032000,-567.08421375,0.00013999,2]
[423650837,1780281032000,-70.27397604,0.00014139,2]
[423650845,1780281032000,-309.15856962,0.00014846,2]
[423650843,1780281032000,-124.54101388,0.00014139,2]
[423650875,1780281038000,-504.91206976,0.00014996,2]
[423650867,1780281038000,-389.62997985,0.00014852,2]
[423650866,1780281038000,-4690.84143038,0.00014846,2]
[423650869,1780281038000,-1200.0,0.00014995,2]
[423650870,1780281038000,-500.0,0.00014996,2]
[423650868,1780281038000,-300.0,0.00014995,2]
[423650871,1780281038000,-500.0,0.00014996,2]
[423650872,1780281038000,-500.0,0.00014996,2]
[423650874,1780281038000,-510.57201662,0.00014996,2]
[423650876,1780281038000,-503.19239565,0.00014996,2]
[423650877,1780281038000,-503.13928634,0.00014996,2]
[423650878,1780281038000,-503.36149977,0.00014996,2]
[423650879,1780281038000,-501.08734097,0.00014996,2]
[423650880,1780281038000,-500.92609807,0.00014996,2]
[423650881,1780281038000,-531.4099663,0.00014996,2]
[423650883,1780281038000,-500.0,0.00014997,2]
[423650882,1780281038000,-233.70210304,0.00014997,2]
[423650873,1780281038000,-500.0,0.00014996,2]
[423650926,1780281039000,-500.0,0.00015271,2]
[423650924,1780281039000,-502.73748769,0.0001527,2]
[423650935,1780281039000,-500.0,0.00015271,2]
[423650925,1780281039000,-500.0,0.0001527,2]
[423650915,1780281039000,-500.0,0.00014998,2]
[423650917,1780281039000,-616.6,0.00014998,2]
[423650918,1780281039000,-500.0,0.00014999,2]
[423650919,1780281039000,-4917.05240514,0.00015,15]
[423650936,1780281039000,-619.8,0.00015271,2]
[423650916,1780281039000,-553.82416341,0.00014998,2]
[423650923,1780281039000,-501.24832196,0.0001527,2]
[423650911,1780281039000,-500.0,0.00014998,2]
[423650914,1780281039000,-500.0,0.00014998,2]
[423650927,1780281039000,-500.0,0.00015271,2]
[423650931,1780281039000,-500.0,0.00015271,2]
[423650928,1780281039000,-500.0,0.00015271,2]
[423650932,1780281039000,-500.0,0.00015271,2]
[423650934,1780281039000,-500.0,0.00015271,2]
[423650949,1780281039000,-300.0,0.00015295,2]
[423650930,1780281039000,-500.0,0.00015271,2]
[423650933,1780281039000,-500.0,0.00015271,2]
[423650938,1780281039000,-159.94207258,0.00015272,2]
[423650947,1780281039000,-616.6,0.00015272,2]
[423650937,1780281039000,-500.0,0.00015271,2]
[423650946,1780281039000,-500.0,0.00015272,2]
[423650941,1780281039000,-620.49830072,0.00015272,2]
[423650939,1780281039000,-507.6869107,0.00015272,2]
[423650920,1780281039000,-127868.3593843,0.00015,2]
[423650929,1780281039000,-500.0,0.00015271,2]
[423650913,1780281039000,-600.13,0.00014998,2]
[423650892,1780281039000,-505.08354381,0.00014997,2]
[423650922,1780281039000,-500.75497588,0.0001527,2]
[423650945,1780281039000,-500.0,0.00015272,2]
[423650886,1780281039000,-500.0,0.00014997,2]
[423650885,1780281039000,-537.8435447,0.00014997,2]
[423650884,1780281039000,-500.0,0.00014997,2]
[423650888,1780281039000,-500.0,0.00014997,2]
[423650889,1780281039000,-500.0,0.00014997,2]
[423650887,1780281039000,-500.0,0.00014997,2]
[423650890,1780281039000,-500.0,0.00014997,2]
[423650891,1780281039000,-500.0,0.00014997,2]
[423650895,1780281039000,-500.0,0.00014997,2]
[423650893,1780281039000,-500.0,0.00014997,2]
[423650896,1780281039000,-619.8,0.00014997,2]
[423650894,1780281039000,-500.47646417,0.00014997,2]
[423650921,1780281039000,-219.74513921,0.00015172,2]
[423650897,1780281039000,-504.72732335,0.00014997,2]
[423650909,1780281039000,-500.94433255,0.00014998,2]
[423650900,1780281039000,-500.0,0.00014997,2]
[423650901,1780281039000,-517.69419415,0.00014998,2]
[423650898,1780281039000,-500.93907469,0.00014997,2]
[423650902,1780281039000,-500.0,0.00014998,2]
[423650903,1780281039000,-502.55461879,0.00014998,2]
[423650904,1780281039000,-501.66907407,0.00014998,2]
[423650905,1780281039000,-500.0,0.00014998,2]
[423650906,1780281039000,-500.0,0.00014998,2]
[423650908,1780281039000,-500.0,0.00014998,2]
[423650907,1780281039000,-549.17570277,0.00014998,2]
[423650910,1780281039000,-502.59437184,0.00014998,2]
[423650912,1780281039000,-3150.47,0.00014998,2]
[423650899,1780281039000,-514.11972257,0.00014997,2]
[423650943,1780281039000,-3150.47,0.00015272,2]
[423650987,1780281039000,-169.99128962,0.00015613,2]
[423650940,1780281039000,-502.73655143,0.00015272,2]
[423650979,1780281039000,-500.0,0.00015546,2]
[423650989,1780281039000,-779.2599597,0.00015644,2]
[423650982,1780281039000,-500.0,0.00015546,2]
[423650984,1780281039000,-616.6,0.00015546,2]
[423650985,1780281039000,-500.0,0.00015547,2]
[423650981,1780281039000,-600.13,0.00015546,2]
[423650986,1780281039000,-206.49240436,0.00015613,2]
[423650983,1780281039000,-500.0,0.00015546,2]
[423650992,1780281039000,-573.00380409,0.00015699,2]
[423651000,1780281039000,-507.25632525,0.00015699,2]
[423651001,1780281039000,-501.64747653,0.00015699,2]
[423650995,1780281039000,-505.05920679,0.00015699,2]
[423650997,1780281039000,-501.49389369,0.00015699,2]
[423650988,1780281039000,-296.86802029,0.00015613,2]
[423650994,1780281039000,-507.97274866,0.00015699,2]
[423650990,1780281039000,-502.33221998,0.00015699,2]
[423650999,1780281039000,-508.60463648,0.00015699,2]
[423650991,1780281039000,-513.79549415,0.00015699,2]
[423650996,1780281039000,-510.65498899,0.00015699,2]
[423650998,1780281039000,-1671.63,0.00015699,2]
[423651003,1780281039000,-503.34705405,0.00015699,2]
[423651002,1780281039000,-502.53026447,0.00015699,2]
[423651004,1780281039000,-505.75896098,0.00015699,2]
[423651005,1780281039000,-502.81197879,0.00015699,2]
[423651008,1780281039000,-502.23524014,0.00015699,2]
[423651006,1780281039000,-502.46099511,0.00015699,2]
[423650944,1780281039000,-600.13,0.00015272,2]
[423651007,1780281039000,-502.25931441,0.00015699,2]
[423650993,1780281039000,-491.76454544,0.00015699,2]
[423650980,1780281039000,-3150.47,0.00015546,2]
[423651009,1780281039000,-504.26512687,0.00015699,2]
[423650978,1780281039000,-187.91848223,0.00015545,2]
[423650977,1780281039000,-619.8,0.00015545,2]
[423650948,1780281039000,-500.0,0.00015273,2]
[423650959,1780281039000,-300.0,0.00015295,2]
[423650963,1780281039000,-300.0,0.00015295,2]
[423650955,1780281039000,-300.0,0.00015295,2]
[423650956,1780281039000,-300.0,0.00015295,2]
[423650960,1780281039000,-300.0,0.00015295,2]
[423650953,1780281039000,-300.0,0.00015295,2]
[423650958,1780281039000,-300.0,0.00015295,2]
[423650951,1780281039000,-300.0,0.00015295,2]
[423650962,1780281039000,-300.0,0.00015295,2]
[423650961,1780281039000,-300.0,0.00015295,2]
[423650952,1780281039000,-300.0,0.00015295,2]
[423650954,1780281039000,-300.0,0.00015295,2]
[423650950,1780281039000,-300.0,0.00015295,2]
[423650942,1780281039000,-500.0,0.00015272,2]
[423650965,1780281039000,-584.44496977,0.00015327,2]
[423650957,1780281039000,-300.0,0.00015295,2]
[423650970,1780281039000,-500.0,0.00015545,2]
[423650971,1780281039000,-500.0,0.00015545,2]
[423650969,1780281039000,-500.0,0.00015545,2]
[423650974,1780281039000,-500.0,0.00015545,2]
[423650972,1780281039000,-500.0,0.00015545,2]
[423650968,1780281039000,-500.0,0.00015545,2]
[423650973,1780281039000,-500.0,0.00015545,2]
[423650967,1780281039000,-500.0,0.00015545,2]
[423650966,1780281039000,-500.45263287,0.00015544,2]
[423650964,1780281039000,-600.0,0.00015295,2]
[423650976,1780281039000,-511.24084673,0.00015545,2]
[423650975,1780281039000,-500.0,0.00015545,2]
[423651053,1780281040000,-600.13,0.00016094,2]
[423651064,1780281040000,-500.0,0.00016367,2]
[423651052,1780281040000,-3150.47,0.00016094,2]
[423651062,1780281040000,-500.0,0.00016367,2]
[423651047,1780281040000,-500.0,0.00016093,2]
[423651051,1780281040000,-619.8,0.00016093,2]
[423651040,1780281040000,-1671.63,0.00015973,2]
[423651041,1780281040000,-511.89115686,0.00015973,2]
[423651043,1780281040000,-500.0,0.00016093,2]
[423651044,1780281040000,-646.1052215,0.00016093,2]
[423651050,1780281040000,-500.0,0.00016093,2]
[423651045,1780281040000,-500.0,0.00016093,2]
[423651054,1780281040000,-500.0,0.00016094,2]
[423651057,1780281040000,-1671.63,0.00016247,2]
[423651060,1780281040000,-382.65151654,0.00016367,2]
[423651061,1780281040000,-500.0,0.00016367,2]
[423651058,1780281040000,-500.0,0.00016367,2]
[423651055,1780281040000,-616.6,0.00016094,2]
[423651059,1780281040000,-500.0,0.00016367,2]
[423651056,1780281040000,-515.99190241,0.00016095,2]
[423651065,1780281040000,-619.8,0.00016367,2]
[423651067,1780281040000,-600.13,0.00016368,2]
[423651069,1780281040000,-616.6,0.00016368,2]
[423651068,1780281040000,-500.0,0.00016368,2]
[423651066,1780281040000,-3150.47,0.00016368,2]
[423651039,1780281040000,-974.07494962,0.00015961,2]
[423651074,1780281040000,-500.0,0.00016641,2]
[423651063,1780281040000,-500.0,0.00016367,2]
[423651037,1780281040000,-616.6,0.0001582,2]
[423651024,1780281040000,-510.52909284,0.00015819,2]
[423651048,1780281040000,-500.0,0.00016093,2]
[423651078,1780281040000,-619.8,0.00016641,2]
[423651011,1780281040000,-500.0,0.00015699,2]
[423651010,1780281040000,-501.54005178,0.00015699,2]
[423651012,1780281040000,-502.89303669,0.00015699,2]
[423651013,1780281040000,-504.15867928,0.00015699,2]
[423651014,1780281040000,-443.92662124,0.00015699,2]
[423651015,1780281040000,-543.44382439,0.00015699,2]
[423651023,1780281040000,-500.0,0.00015819,2]
[423651016,1780281040000,-504.49393521,0.00015699,2]
[423651018,1780281040000,-195.03802317,0.000157,2]
[423651019,1780281040000,-176.21859217,0.000157,2]
[423651020,1780281040000,-176.21859216,0.000157,2]
[423651021,1780281040000,-176.21859216,0.000157,2]
[423651049,1780281040000,-500.0,0.00016093,2]
[423651022,1780281040000,-500.0,0.00015819,2]
[423651025,1780281040000,-500.0,0.00015819,2]
[423651035,1780281040000,-510.37466318,0.0001582,2]
[423651026,1780281040000,-500.0,0.00015819,2]
[423651036,1780281040000,-500.0,0.0001582,2]
[423651029,1780281040000,-500.0,0.00015819,2]
[423651027,1780281040000,-500.0,0.00015819,2]
[423651028,1780281040000,-500.0,0.00015819,2]
[423651032,1780281040000,-208.01256946,0.0001582,2]
[423651030,1780281040000,-500.0,0.00015819,2]
[423651034,1780281040000,-600.13,0.0001582,2]
[423651031,1780281040000,-619.8,0.00015819,2]
[423651033,1780281040000,-3150.47,0.0001582,2]
[423651038,1780281040000,-500.0,0.00015821,2]
[423651017,1780281040000,-500.67392799,0.00015699,2]
[423651076,1780281040000,-500.0,0.00016641,2]
[423651046,1780281040000,-500.0,0.00016093,2]
[423651079,1780281040000,-3150.47,0.00016642,2]
[423651104,1780281040000,-208.698,0.00017324,2]
[423651108,1780281040000,-619.8,0.00017463,2]
[423651110,1780281040000,-600.13,0.00017464,2]
[423651109,1780281040000,-3150.47,0.00017464,2]
[423651113,1780281040000,-291.96800844,0.0001757,2]
[423651116,1780281040000,-500.0,0.00017737,2]
[423651114,1780281040000,-1671.63,0.00017617,2]
[423651112,1780281040000,-616.6,0.00017464,2]
[423651111,1780281040000,-500.0,0.00017464,2]
[423651115,1780281040000,-219.7451392,0.00017627,2]
[423651118,1780281040000,-619.8,0.00017737,2]
[423651120,1780281040000,-600.13,0.00017738,2]
[423651128,1780281040000,-500.0,0.00018012,2]
[423651102,1780281040000,-500.0,0.0001719,2]
[423651123,1780281040000,-1671.63,0.00017891,2]
[423651124,1780281040000,-208.21981948,0.00018011,2]
[423651122,1780281040000,-616.6,0.00017738,2]
[423651117,1780281040000,-441.2545579,0.00017737,2]
[423651125,1780281040000,-619.8,0.00018011,2]
[423651121,1780281040000,-500.0,0.00017738,2]
[423651127,1780281040000,-600.13,0.00018012,2]
[423651126,1780281040000,-3150.47,0.00018012,2]
[423651129,1780281040000,-616.6,0.00018012,2]
[423651131,1780281040000,-1671.63,0.00018165,2]
[423651130,1780281040000,-2351.0,0.00018144,2]
[423651132,1780281040000,-619.8,0.00018285,2]
[423651135,1780281040000,-500.0,0.00018286,2]
[423651133,1780281040000,-3150.47,0.00018286,2]
[423651119,1780281040000,-3150.47,0.00017738,2]
[423651106,1780281040000,-500.0,0.00017463,2]